bitfinex-derivatives/quotes_SOLF0:USTF0_20240910
["timestamp","ask_amount","ask_price","bid_price","bid_amount"]
[1725968793734,3.6991,135.16,135.13,3.6998]
[1725968794142,3.6991,135.16,135.13,7.47469081]
[1725968794735,3.6994,135.15,135.12,3.7]
[1725968797845,9.1,135.15,135.1,9.1]
[1725968798038,9.1,135.17,135.11,9.1]
[1725968798240,3.6995,135.15,135.12,3.6999]
[1725968798438,3.6995,135.15,135.13,9.1]
[1725968798936,9.1,135.19,135.13,9.1]
[1725968798937,3.6992,135.16,135.13,9.1]
[1725968799341,3.6992,135.16,135.13,12.77125619]
[1725968800251,3.6992,135.16,135.14,3.6996]
[1725968800939,3.6992,135.16,135.13,16.47105619]
[1725968801138,9.1,135.19,135.07,2.7713]
[1725968801343,9.1,135.19,135.12,12.8001]
[1725968801740,3.6995,135.15,135.12,9.1]
[1725968802248,3.6995,135.15,135.12,12.8001]
[1725968803355,3.6995,135.15,135.13,3.6999]
[1725968804947,3.6992,135.16,135.13,3.6999]
[1725968809640,3.699,135.17,135.14,3.6995]
[1725968811156,3.699,135.17,135.15,12.7993]
[1725968812454,3.699,135.17,135.15,9.1]
[1725968813652,3.699,135.17,135.13,9.1]
[1725968813952,3.699,135.17,135.14,3.6994]
[1725968816650,9.1,135.18,135.13,3.6997]
[1725968817151,3.6993,135.16,135.13,3.6997]
[1725968818059,3.6993,135.16,135.14,3.6996]
[1725968818257,3.6993,135.16,135.14,12.7996]
[1725968819157,3.699,135.17,135.14,12.7996]
[1725968820453,9.1,135.18,135.13,3.6999]
[1725968821050,9.1,135.18,135.13,12.7999]
[1725968821253,3.6992,135.16,135.14,3.6996]
[1725968821864,3.6989,135.17,135.14,3.6996]
[1725968822358,13.147,135.2,135.14,3.6996]
[1725968823056,3.6991,135.16,135.14,3.6996]
[1725968823751,3.6991,135.16,135.13,12.7997]
[1725968825650,3.6994,135.15,135.13,12.7997]
[1725968828862,3.6992,135.16,135.14,3.6996]
[1725968829058,3.6992,135.16,135.14,12.7996]
[1725968830056,3.699,135.17,135.14,12.7996]
[1725968830354,4.047,135.2,135.16,9.1]
[1725968830556,3.6985,135.19,135.16,9.1]
[1725968830756,3.6985,135.19,135.16,12.799]
[1725968831356,3.6986,135.18,135.16,12.799]
[1725968832755,3.6986,135.18,135.16,9.1]
[1725968833858,13.147,135.2,135.14,7.40712398]
[1725968834059,9.1,135.19,135.07,15.98930904]
[1725968834370,9.1,135.19,135.13,9.1]
[1725968834966,3.6992,135.16,135.13,9.1]
[1725968835169,3.6992,135.16,135.13,12.7997]
[1725968835858,3.6988,135.18,135.14,9.1]
[1725968836059,3.6988,135.18,135.15,9.1]
[1725968837162,3.6988,135.18,135.16,3.6991]
[1725968838763,3.6989,135.17,135.14,9.1]
[1725968839058,9.1,135.19,135.14,9.1]
[1725968839465,9.1,135.19,135.14,12.7996]
[1725968841171,3.699,135.17,135.14,12.7996]
[1725968843272,3.6991,135.16,135.14,12.7996]
[1725968852268,3.6991,135.16,135.14,9.1]
[1725968856572,3.6991,135.16,135.14,12.7996]
[1725968868193,3.6989,135.17,135.15,3.6994]
[1725968868388,3.6989,135.17,135.15,12.7994]
[1725968877596,3.6989,135.17,135.15,3.6994]
[1725968877900,3.6989,135.17,135.14,12.7995]
[1725968878403,3.6991,135.16,135.14,9.1]
[1725968880292,3.6989,135.17,135.14,12.7995]
[1725968881801,3.6992,135.16,135.14,12.7995]
[1725968884701,3.6989,135.17,135.14,12.7995]
[1725968885908,3.6989,135.17,135.15,3.6993]
[1725968889700,1.3249,135.2,135.15,9.1]
[1725968889898,1.3249,135.2,135.17,9.1]
[1725968890310,1.3249,135.2,135.18,3.6985]
[1725968890810,1.3249,135.2,135.17,12.83649148]
[1725968890811,5.023,135.2,135.17,3.6986]
[1725968891004,1.3249,135.2,135.17,3.6986]
[1725968891206,1.3249,135.2,135.16,9.1]
[1725968891512,1.3249,135.2,135.16,12.799]
[1725968891906,3.6987,135.18,135.16,9.1]
[1725968892109,3.6987,135.18,135.15,12.7992]
[1725968893015,3.6987,135.18,135.16,3.6991]
[1725968893622,3.6987,135.18,135.15,12.7993]
[1725968893809,3.6988,135.17,135.15,3.6993]
[1725968894011,1.3249,135.2,135.15,12.7993]
[1725968896113,3.6987,135.18,135.15,12.7993]
[1725968898016,3.6988,135.17,135.15,12.7993]
[1725968906222,3.6991,135.16,135.14,3.6996]
[1725968907119,3.6991,135.16,135.12,3.65665013]
[1725968907316,3.6991,135.16,135.13,9.1]
[1725968907518,3.6991,135.16,135.14,3.6996]
[1725968909121,3.6989,135.17,135.14,3.6996]
[1725968910330,3.6992,135.16,135.13,12.7998]
[1725968917222,3.699,135.17,135.14,3.6995]
[1725968917927,3.699,135.17,135.14,12.7995]
[1725968918423,3.699,135.17,135.15,3.6993]
[1725968919923,4.0437,135.2,135.16,12.799]
[1725968920325,5.023,135.2,135.17,12.7987]
[1725968920529,5.023,135.2,135.17,9.1]
[1725968921432,3.6981,135.2,135.17,12.7987]
[1725968926838,3.6981,135.2,135.18,3.6985]
[1725968927839,155.70181615,135.21,135.18,3.6985]
[1725968928041,152.00401615,135.21,135.18,3.6985]
[1725968928444,152.00401615,135.21,135.17,3.6987]
[1725968928445,161.10401615,135.21,135.17,3.6987]
[1725968930137,3.6983,135.19,135.17,3.6987]
[1725968932043,3.6983,135.19,135.16,3.6989]
[1725968932541,161.10401615,135.21,135.16,3.6989]
[1725968933142,3.6984,135.19,135.16,3.6989]
[1725968934940,161.10401615,135.21,135.16,3.6989]
[1725968934941,3.6986,135.18,135.16,3.6989]
[1725968935347,3.6981,135.2,135.17,3.6986]
[1725968941348,3.6983,135.19,135.17,3.6986]
[1725968942252,3.6983,135.19,135.16,3.6989]
[1725968942454,3.6986,135.18,135.16,3.6989]
[1725968943245,9.1,135.18,135.13,3.6998]
[1725968943449,9.1,135.18,135.12,2.747]
[1725968943650,3.7001,135.13,135.1,3.7005]
[1725968943855,3.72936875,135.18,135.12,9.1]
[1725968944158,9.1,135.18,135.13,9.1]
[1725968944469,3.699,135.17,135.14,3.6995]
[1725968944951,3.699,135.17,135.14,12.7995]
[1725968945853,3.6991,135.16,135.14,12.7995]
[1725968949361,10.4419,135.2,135.14,12.7995]
[1725968949362,3.699,135.17,135.14,12.7995]
[1725968950254,3.6991,135.16,135.14,12.7995]
[1725968964771,3.699,135.17,135.15,3.6994]
[1725968965470,3.6987,135.18,135.15,9.1]
[1725968966070,3.6984,135.19,135.16,3.6989]
[1725968966274,3.6984,135.19,135.15,9.1]
[1725968966569,3.6984,135.19,135.17,9.1]
[1725968966970,151.99784865,135.21,135.18,9.1]
[1725968967574,3.698,135.2,135.18,9.1]
[1725968968163,3.698,135.2,135.18,12.7984]
[1725968968366,3.698,135.2,135.18,9.1]
[1725968970073,3.698,135.2,135.18,12.7985]
[1725968971871,155.69574865,135.21,135.18,12.7985]
[1725968973573,3.6976,135.22,135.18,9.1]
[1725968973775,3.6976,135.22,135.19,9.1]
[1725968973972,3.6976,135.22,135.19,12.80514184]
[1725968974371,3.6977,135.21,135.19,7.40324184]
[1725968974574,3.6977,135.21,135.19,16.50324184]
[1725968974972,3.6977,135.21,135.18,12.7984]
[1725968975374,3.6977,135.21,135.18,9.1]
[1725968975968,3.6977,135.21,135.19,9.1]
[1725968976477,3.6977,135.21,135.19,12.81254162]
[1725968976878,3.6977,135.21,135.19,9.1]
[1725968977076,3.698,135.2,135.18,3.6985]
[1725968977273,3.698,135.2,135.17,9.1]
[1725968977668,3.6979,135.21,135.18,3.6984]
[1725968980371,3.698,135.2,135.18,3.6984]
[1725968980576,3.698,135.2,135.17,12.7987]
[1725968981881,3.698,135.2,135.18,3.6985]
[1725968982268,3.6979,135.21,135.17,9.1]
[1725968982673,3.6979,135.21,135.18,3.6983]
[1725968984070,3.698,135.2,135.18,3.6983]
[1725968984974,5.0657,135.24,135.21,3.6975]
[1725968985169,1.3686,135.24,135.2,12.73669996]
[1725968985679,3.6975,135.22,135.2,3.6978]
[1725968986485,3.6975,135.22,135.19,16.50731198]
[1725968986680,10.4686,135.24,135.19,12.7981]
[1725968987070,9.1,135.23,135.19,3.6981]
[1725968987276,3.6977,135.22,135.19,3.6981]
[1725968988182,3.6978,135.21,135.19,3.6981]
[1725968988883,3.6981,135.2,135.18,3.6984]
[1725968989184,1.3686,135.24,135.15,9.1]
[1725968989185,9.1,135.21,135.15,9.1]
[1725968989376,1.3686,135.24,135.18,9.1]
[1725968989576,9.1,135.23,135.18,9.1]
[1725968990485,3.6978,135.21,135.18,12.7983]
[1725968992275,3.6978,135.21,135.19,3.6983]
[1725968992486,1.3686,135.24,135.19,9.1]
[1725968992881,1.3686,135.24,135.19,12.7981]
[1725968993276,3.6976,135.22,135.19,12.7981]
[1725968993491,9.1,135.2,135.13,3.7857849]
[1725968993790,3.699,135.17,135.13,9.1]
[1725968993981,1.3476,135.19,135.13,9.1]
[1725968994577,1.3476,135.19,135.13,12.7997]
[1725968994780,1.3476,135.19,135.12,3.66666666]
[1725968994781,1.3476,135.19,135.14,9.1]
[1725968995286,3.699,135.17,135.14,12.7995]
[1725968995587,3.699,135.17,135.14,16.46283703]
[1725968997483,3.699,135.17,135.15,3.6994]
[1725968998395,3.6987,135.18,135.16,9.1]
[1725969001191,3.6988,135.17,135.16,9.1]
[1725969001898,3.6987,135.18,135.16,9.1]
[1725969002092,3.6987,135.18,135.16,12.7991]
[1725969002602,3.6985,135.19,135.16,12.7991]
[1725969003293,152.00311905,135.21,135.15,3.6993]
[1725969003499,9.1,135.2,135.14,9.1]
[1725969003690,3.6987,135.18,135.16,9.1]
[1725969004090,3.6987,135.18,135.16,12.799]
[1725969004295,3.6984,135.19,135.16,9.1]
[1725969004488,1.3269,135.24,135.18,3.6985]
[1725969004691,9.1,135.23,135.18,3.6985]
[1725969004898,3.6979,135.21,135.18,12.7985]
[1725969005407,3.6979,135.21,135.18,16.50530015]
[1725969005594,3.698,135.2,135.18,16.50530015]
[1725969006301,3.698,135.2,135.18,12.7985]
[1725969006604,3.698,135.2,135.18,16.40947609]
[1725969010002,3.698,135.2,135.18,12.7985]
[1725969011104,3.6979,135.21,135.18,12.7985]
[1725969011698,3.6979,135.21,135.18,16.53989422]
[1725969011899,9.1,135.23,135.18,16.53989422]
[1725969011900,3.6981,135.2,135.18,16.53989422]
[1725969013702,3.6979,135.21,135.18,16.53989422]
[1725969015500,3.6976,135.22,135.2,9.1]
[1725969018308,3.6976,135.22,135.2,3.698]
[1725969018502,3.6977,135.21,135.19,9.1]
[1725969019018,10.4269,135.24,135.18,3.67184609]
[1725969019206,10.4269,135.24,135.18,9.1]
[1725969019509,9.1,135.22,135.11,6.43787242]
[1725969019702,9.1,135.22,135.15,9.1]
[1725969019896,9.1,135.22,135.11,6.43787242]
[1725969019897,9.1,135.22,135.17,9.1]
[1725969020101,3.6979,135.21,135.18,9.1]
[1725969020501,3.6976,135.22,135.19,12.7982]
[1725969020699,1.3269,135.24,135.21,9.1]
[1725969021610,5.0239,135.24,135.21,12.7976]
[1725969022598,3.6972,135.23,135.21,12.7976]
[1725969024014,3.6972,135.23,135.21,9.1]
[1725969026410,3.6974,135.22,135.21,9.1]
[1725969027015,1.3269,135.24,135.21,9.1]
[1725969027702,3.6974,135.23,135.21,9.1]
[1725969028710,3.6974,135.22,135.21,9.1]
[1725969029009,3.6974,135.22,135.2,3.6978]
[1725969031005,3.6973,135.23,135.2,3.6978]
[1725969032407,1.3269,135.24,135.2,3.6978]
[1725969032812,1.3269,135.24,135.19,12.82244174]
[1725969032813,3.6973,135.23,135.21,3.6976]
[1725969033120,1.3269,135.24,135.21,9.1]
[1725969034225,5.0239,135.24,135.22,3.6974]
[1725969039414,3.697,135.24,135.22,3.6974]
[1725969043019,3.6964,135.26,135.24,3.6968]
[1725969043218,1.2741,135.28,135.19,3.72244174]
[1725969043219,0.04174175,135.24,135.23,9.1]
[1725969045223,0.04174175,135.24,135.23,12.7972]
[1725969048222,0.04174175,135.24,135.23,12.76755151]
[1725969051030,3.6964,135.26,135.24,3.6968]
[1725969051233,3.6964,135.26,135.24,12.7968]
[1725969051429,3.6962,135.27,135.25,3.6965]
[1725969051631,3.6962,135.27,135.25,12.7965]
[1725969054847,4.97,135.28,135.26,3.6963]
[1725969055032,1.2741,135.28,135.25,9.1]
[1725969055437,3.6963,135.27,135.25,12.7965]
[1725969055947,3.6963,135.27,135.25,9.1]
[1725969056144,3.6963,135.26,135.25,9.1]
[1725969057246,3.6963,135.26,135.24,12.7968]
[1725969059749,151.90700664,135.31,135.25,9.1]
[1725969059953,2.4125445,135.3,135.26,9.1]
[1725969060148,3.6958,135.29,135.26,9.1]
[1725969060744,3.6958,135.29,135.26,16.49062696]
[1725969060946,3.6958,135.29,135.26,12.79452696]
[1725969062049,3.6958,135.29,135.27,3.696]
[1725969062255,4.9915,135.3,135.28,9.1]
[1725969062450,1.2961,135.3,135.29,12.7955]
[1725969062651,151.90700664,135.31,135.29,12.7955]
[1725969063048,151.90700664,135.31,135.3,3.6953]
[1725969063252,9.1,135.35,135.3,12.7953]
[1725969063452,1.11714209,135.34,135.3,12.7953]
[1725969063752,3.6946,135.33,135.3,12.7953]
[1725969065353,3.6946,135.33,135.31,3.695]
[1725969066058,3.6946,135.33,135.31,12.795]
[1725969066447,3.6943,135.34,135.32,9.1]
[1725969068460,1.3554,135.36,135.32,9.1]
[1725969068653,1.3554,135.36,135.35,9.1]
[1725969069447,5.049,135.36,135.35,9.1]
[1725969070048,3.694,135.35,135.32,3.6946]
[1725969070257,1.3554,135.36,135.33,9.1]
[1725969070649,3.6942,135.34,135.33,9.1]
[1725969070955,10.4554,135.36,135.31,9.1]
[1725969071551,10.4554,135.36,135.3,12.77487458]
[1725969071753,10.4554,135.36,135.3,16.46997458]
[1725969071754,3.6944,135.33,135.3,16.46997458]
[1725969072053,3.6944,135.33,135.3,12.7951]
[1725969072558,3.6947,135.32,135.3,12.7951]
[1725969072760,3.6947,135.32,135.3,9.1]
[1725969072960,10.4554,135.36,135.3,9.1]
[1725969073149,9.1,135.35,135.3,9.1]
[1725969073354,3.695,135.31,135.3,9.1]
[1725969073956,3.6954,135.3,135.29,9.1]
[1725969074159,10.4998,135.34,135.28,9.1]
[1725969074452,1.3899,135.33,135.28,9.1]
[1725969074658,3.6954,135.3,135.28,9.1]
[1725969075364,3.6955,135.29,135.28,9.1]
[1725969075659,9.1,135.32,135.26,9.1]
[1725969076050,1.3157,135.31,135.26,9.1]
[1725969076660,10.4157,135.31,135.26,9.1]
[1725969076861,9.1,135.3,135.24,9.1]
[1725969077061,1.3157,135.31,135.25,12.7966]
[1725969077264,1.3157,135.31,135.27,9.1]
[1725969077460,3.6958,135.28,135.27,9.1]
[1725969080167,3.6962,135.27,135.25,9.1]
[1725969081566,1.3157,135.31,135.26,3.6963]
[1725969081768,1.3157,135.31,135.27,9.1]
[1725969081958,1.3157,135.31,135.28,9.1]
[1725969082366,3.6957,135.29,135.28,9.1]
[1725969084164,3.696,135.28,135.27,9.1]
[1725969086562,1.3157,135.31,135.26,9.1]
[1725969086563,3.6962,135.27,135.26,9.1]
[1725969091771,3.6959,135.28,135.26,9.1]
[1725969091968,1.3157,135.31,135.27,9.1]
[1725969092370,3.6957,135.29,135.27,9.1]
[1725969093074,3.6958,135.28,135.27,9.1]
[1725969098974,3.6955,135.3,135.27,12.7959]
[1725969099277,3.6955,135.3,135.27,12.79018563]
[1725969099981,3.6955,135.3,135.29,9.1]
[1725969109598,3.6956,135.29,135.28,9.1]
[1725969110894,3.6954,135.3,135.28,9.1]
[1725969111193,3.6954,135.3,135.29,9.1]
[1725969115087,1.3157,135.31,135.29,9.1]
[1725969115293,1.3998,135.34,135.3,9.1]
[1725969115595,3.6949,135.32,135.3,9.1]
[1725969116200,1.3998,135.34,135.3,9.1]
[1725969116695,2.7059,135.34,135.3,9.1]
[1725969117103,2.7059,135.34,135.29,9.1]
[1725969117688,15.47392218,135.34,135.28,9.1]
[1725969117892,15.47392218,135.34,135.21,5.80981233]
[1725969117893,9.1,135.33,135.27,9.1]
[1725969118104,3.6958,135.28,135.27,9.1]
[1725969126212,3.6957,135.29,135.27,12.796]
[1725969126415,3.6957,135.29,135.28,9.1]
[1725969127213,3.6954,135.3,135.28,9.1]
[1725969130524,3.6951,135.31,135.28,12.7958]
[1725969130710,3.6951,135.31,135.28,9.1]
[1725969131015,3.6951,135.31,135.29,9.1]
[1725969131326,3.6948,135.32,135.29,12.7955]
[1725969132423,3.6948,135.32,135.3,3.6951]
[1725969133612,2.7059,135.34,135.27,3.64933816]
[1725969133613,1.3061,135.34,135.31,12.7948]
[1725969133926,1.3061,135.34,135.31,9.1]
[1725969134123,3.6947,135.32,135.31,9.1]
[1725969136725,3.6946,135.33,135.31,9.1]
[1725969137523,1.3061,135.34,135.31,12.7949]
[1725969137721,5.0004,135.34,135.32,9.1]
[1725969138127,3.6944,135.33,135.27,3.64933816]
[1725969138328,1.3061,135.34,135.3,9.1]
[1725969138631,3.6949,135.32,135.3,9.1]
[1725969143931,3.6949,135.32,135.3,12.7953]
[1725969145133,1.3061,135.34,135.3,12.7953]
[1725969145134,3.6946,135.33,135.3,12.7953]
[1725969146433,3.6946,135.33,135.31,9.1]
[1725969148629,3.6947,135.32,135.31,9.1]
[1725969148830,3.6947,135.32,135.3,3.6953]
[1725969155330,1.3061,135.34,135.3,3.6953]
[1725969155331,3.6946,135.33,135.3,3.6953]
[1725969155630,1.3061,135.34,135.31,3.6949]
[1725969155832,1.3061,135.34,135.29,9.1]
[1725969156035,3.6948,135.32,135.3,3.6952]
[1725969156439,9.1,135.33,135.26,1.2856]
[1725969156740,9.1,135.32,135.27,9.1]
[1725969156941,3.6958,135.28,135.26,9.1]
[1725969158828,3.6961,135.27,135.26,9.1]
[1725969160037,3.6964,135.26,135.21,1.3456]
[1725969160237,1.3231,135.3,135.22,9.1]
[1725969160238,9.1,135.27,135.22,9.1]
[1725969160935,3.697,135.24,135.22,9.1]
[1725969161135,9.1,135.27,135.2,1.3476]
[1725969161440,3.6974,135.23,135.21,9.1]
[1725969162339,3.697,135.24,135.21,12.7977]
[1725969166245,3.697,135.24,135.22,3.6974]
[1725969166450,3.697,135.24,135.22,12.7974]
[1725969167843,9.1,135.27,135.21,3.6976]
[1725969168151,3.6972,135.23,135.21,3.6976]
[1725969168955,3.697,135.24,135.21,3.6976]
[1725969170259,3.697,135.24,135.22,3.6974]
[1725969171059,3.697,135.24,135.21,3.6976]
[1725969172156,9.1,135.25,135.2,3.6979]
[1725969173258,3.6976,135.22,135.2,3.6979]
[1725969173948,3.6976,135.22,135.19,12.7981]
[1725969174750,9.1,135.23,135.17,1.3122]
[1725969174950,9.1,135.23,135.17,10.4122]
[1725969175260,9.1,135.23,135.17,9.1]
[1725969175558,3.6983,135.19,135.17,12.7987]
[1725969176554,2.7036,135.25,135.18,12.80829326]
[1725969176859,9.1,135.24,135.18,9.1]
[1725969177047,3.6979,135.21,135.19,3.6981]
[1725969177650,3.6979,135.21,135.18,12.7984]
[1725969178258,3.6979,135.21,135.19,3.6981]
[1725969178447,3.6975,135.22,135.18,9.1]
[1725969178649,3.6975,135.22,135.18,12.85804661]
[1725969178853,3.6975,135.22,135.2,12.7978]
[1725969180463,3.6975,135.22,135.18,3.70255271]
[1725969180464,3.6972,135.23,135.21,12.7977]
[1725969180653,1.333,135.25,135.21,12.7977]
[1725969180853,3.6972,135.24,135.21,9.1]
[1725969181066,3.6972,135.24,135.22,3.6974]
[1725969181457,3.6972,135.24,135.22,12.7974]
[1725969183959,5.0297,135.25,135.23,3.6972]
[1725969184162,9.1,135.28,135.23,12.7972]
[1725969184767,3.6965,135.26,135.23,12.7972]
[1725969185469,2.6669,135.29,135.23,12.7972]
[1725969185654,11.7669,135.29,135.24,3.6968]
[1725969185855,11.7669,135.29,135.23,9.1]
[1725969186056,3.6965,135.26,135.23,9.1]
[1725969186361,3.6965,135.26,135.23,12.797]
[1725969186967,9.1,135.27,135.22,3.6973]
[1725969187167,9.1,135.26,135.2,9.1]
[1725969187666,9.1,135.26,135.2,12.79332099]
[1725969188065,3.6971,135.24,135.21,3.6975]
[1725969190866,3.6973,135.23,135.2,12.7979]
[1725969191067,9.1,135.26,135.2,12.7979]
[1725969191462,3.6974,135.23,135.2,12.7979]
[1725969194163,3.6973,135.23,135.21,3.6977]
[1725969197374,3.6973,135.23,135.2,12.7978]
[1725969200179,10.3702,135.26,135.2,9.1]
[1725969200376,2.6669,135.29,135.22,9.1]
[1725969200584,3.6968,135.25,135.23,12.797]
[1725969202679,11.7669,135.29,135.23,12.797]
[1725969203176,3.6968,135.25,135.23,12.797]
[1725969203583,3.6963,135.27,135.24,3.6969]
[1725969203979,11.7669,135.29,135.24,3.6969]
[1725969204680,3.6963,135.27,135.24,3.6969]
[1725969207182,3.6964,135.26,135.24,3.6969]
[1725969209678,9.1,135.28,135.23,3.6971]
[1725969210182,3.697,135.24,135.16,1.4068]
[1725969210385,9.1,135.28,135.22,9.1]
[1725969210783,3.6968,135.25,135.22,9.1]
[1725969211979,3.6968,135.25,135.22,12.7973]
[1725969214387,3.6965,135.26,135.23,12.797]
[1725969218392,3.6965,135.26,135.24,3.6968]
[1725969220887,3.6965,135.26,135.23,12.7971]
[1725969226282,3.6965,135.26,135.24,3.6967]
[1725969231089,3.6965,135.26,135.23,12.797]
[1725969233094,3.6962,135.27,135.24,9.1]
[1725969233396,1.3483,135.29,135.26,9.1]
[1725969234100,3.6958,135.28,135.26,9.1]
[1725969236306,1.3483,135.29,135.27,9.1]
[1725969237003,5.044,135.29,135.27,9.1]
[1725969239794,3.6958,135.28,135.27,9.1]
[1725969239998,3.6958,135.28,135.26,12.7962]
[1725969240196,3.6958,135.28,135.26,9.1]
[1725969240506,3.6958,135.28,135.22,2.7242]
[1725969240507,3.6962,135.27,135.22,2.7242]
[1725969240709,3.6962,135.27,135.26,9.1]
[1725969241510,3.696,135.28,135.26,9.1]
[1725969241907,3.696,135.28,135.26,12.7963]
[1725969242100,5.044,135.29,135.26,12.7963]
[1725969242810,5.044,135.29,135.27,3.696]
[1725969244920,3.6954,135.3,135.28,3.6958]
[1725969245603,4.0286,135.33,135.28,3.6958]
[1725969245604,155.59547103,135.31,135.28,9.1]
[1725969247109,155.59547103,135.31,135.29,3.6954]
[1725969251216,3.6954,135.3,135.27,9.1]
[1725969251411,9.1,135.32,135.26,9.1]
[1725969251819,3.6951,135.31,135.27,3.6959]
[1725969252320,3.6951,135.31,135.26,9.1]
[1725969252617,12.7949,135.32,135.26,9.1]
[1725969253022,12.7949,135.32,135.29,3.6954]
[1725969255019,3.695,135.31,135.29,3.6954]
[1725969255205,3.695,135.31,135.28,3.6957]
[1725969255410,3.695,135.31,135.27,9.1]
[1725969255912,3.695,135.31,135.22,8.53723035]
[1725969256127,3.695,135.31,135.28,3.6957]
[1725969256325,3.695,135.31,135.27,9.1]
[1725969256522,12.7948,135.32,135.27,9.1]
[1725969257716,3.6948,135.32,135.29,3.6953]
[1725969260422,11.7559,135.33,135.29,9.1]
[1725969260423,1.3271,135.33,135.29,9.1]
[1725969260819,1.3271,135.33,135.32,3.6947]
[1725969261224,1.273,135.36,135.31,9.1]
[1725969262018,1.273,135.36,135.33,3.6943]
[1725969262019,4.9668,135.36,135.33,3.6943]
[1725969265627,3.6938,135.36,135.34,3.6941]
[1725969266724,3.6938,135.36,135.31,9.1]
[1725969267216,6.2773,135.37,135.32,9.1]
[1725969267422,2.5838,135.37,135.32,9.1]
[1725969268222,3.6937,135.36,135.33,3.6943]
[1725969268826,3.6937,135.36,135.34,3.6941]
[1725969271531,3.6937,135.36,135.33,3.6943]
[1725969271733,3.6937,135.36,135.32,9.1]
[1725969272231,11.6838,135.37,135.32,3.6946]
[1725969272629,9.1,135.36,135.32,3.6946]
[1725969272923,3.6943,135.34,135.31,12.7949]
[1725969273726,3.6945,135.33,135.31,12.7949]
[1725969273929,3.6945,135.33,135.29,2.7238]
[1725969273930,9.1,135.36,135.3,3.695]
[1725969274129,9.1,135.36,135.3,9.1]
[1725969274431,3.6943,135.34,135.31,3.6947]
[1725969274829,3.6949,135.32,135.13,38.8025426]
[1725969275025,3.6949,135.32,135.28,9.1]
[1725969275529,3.6949,135.32,135.3,3.6951]
[1725969276035,3.6946,135.33,135.28,9.1]
[1725969276432,12.7943,135.34,135.28,12.76979597]
[1725969276831,12.7943,135.34,135.31,3.6948]
[1725969277437,3.6943,135.34,135.31,3.6948]
[1725969277631,9.1,135.35,135.3,9.1]
[1725969277632,12.794,135.35,135.3,9.1]
[1725969277839,10.455,135.36,135.31,9.1]
[1725969278340,14.1488,135.36,135.33,3.6943]
[1725969278541,10.455,135.36,135.33,3.6943]
[1725969279632,14.1487,135.36,135.33,3.6943]
[1725969279837,2.5838,135.37,135.34,3.6941]
[1725969280030,1.2874,135.37,135.32,9.1]
[1725969280232,4.9809,135.37,135.35,3.6937]
[1725969280443,1.2874,135.37,135.33,9.1]
[1725969281141,1.2874,135.37,135.36,3.6936]
[1725969281334,1.2874,135.37,135.33,9.1]
[1725969281733,1.2874,135.37,135.34,3.6941]
[1725969281934,1.2874,135.37,135.33,9.1]
[1725969282138,1.2874,135.37,135.34,3.6939]
[1725969283944,1.2874,135.37,135.35,3.6938]
[1725969290541,3.7064695,135.41,135.35,9.1]